[Event "*** MasterClass Titled Tuesday Blitz"]
[Site "Chess.com"]
[Date "2017.12.05"]
[Round "1"]
[White "wanyaland"]
[Black "MITerryble"]
[Result "0-1"]
[WhiteElo "2251"]
[BlackElo "2648"]
[TimeControl "180+2"]
[EndTime "14:23:31 PST"]
[Termination "MITerryble won by resignation"]

1. d4 {[%clk 0:03:01.9]} 1... e6 {[%clk 0:02:59.1]} 2. c4 {[%clk 0:03:03]} 2...
Bb4+ {[%clk 0:02:59.5]} 3. Bd2 {[%clk 0:03:03.3]} 3... Qe7 {[%clk 0:03:00.3]} 4.
g3 {[%clk 0:03:03.4]} 4... Nc6 {[%clk 0:03:00.3]} 5. Nf3 {[%clk 0:03:03.5]} 5...
Nf6 {[%clk 0:03:01.1]} 6. Bg2 {[%clk 0:03:04.2]} 6... Bxd2+ {[%clk 0:03:02.1]}
7. Qxd2 {[%clk 0:03:02.3]} 7... Ne4 {[%clk 0:03:02.5]} 8. Qd3 {[%clk 0:03:02.4]}
8... Qb4+ {[%clk 0:02:52.9]} 9. Nbd2 {[%clk 0:03:00.6]} 9... Nxd2 {[%clk
0:02:52.6]} 10. Nxd2 {[%clk 0:02:50]} 10... Qxb2 {[%clk 0:02:51.6]} 11. Rb1
{[%clk 0:02:49.2]} 11... Qxd4 {[%clk 0:02:46.2]} 12. Qa3 {[%clk 0:02:49.3]}
12... d6 {[%clk 0:02:40.2]} 13. e3 {[%clk 0:02:46.4]} 13... Qf6 {[%clk 0:02:25]}
14. O-O {[%clk 0:02:42.1]} 14... O-O {[%clk 0:02:21.1]} 15. Rfd1 {[%clk
0:02:40.5]} 15... a5 {[%clk 0:02:16.2]} 16. Rb5 {[%clk 0:02:37.3]} 16... Ra6
{[%clk 0:02:08.3]} 17. Ne4 {[%clk 0:02:33.8]} 17... Qe7 {[%clk 0:02:06.7]} 18.
Nc3 {[%clk 0:02:32.8]} 18... Re8 {[%clk 0:01:56.3]} 19. Qb2 {[%clk 0:02:33.2]}
19... Ra7 {[%clk 0:01:49.1]} 20. Rb1 {[%clk 0:02:31.7]} 20... Ne5 {[%clk
0:01:44.2]} 21. Qe2 {[%clk 0:02:18.7]} 21... b6 {[%clk 0:01:39.1]} 22. R5b2
{[%clk 0:02:16.9]} 22... Ba6 {[%clk 0:01:39.7]} 23. Nb5 {[%clk 0:02:17.1]} 23...
Bxb5 {[%clk 0:01:40.8]} 24. cxb5 {[%clk 0:02:18.1]} 24... d5 {[%clk 0:01:42]}
25. Rc2 {[%clk 0:02:17]} 25... Nd7 {[%clk 0:01:42.9]} 26. Rbc1 {[%clk
0:02:07.3]} 26... Nc5 {[%clk 0:01:43.2]} 27. Qd2 {[%clk 0:02:06.8]} 27... Raa8
{[%clk 0:01:40.5]} 28. Qd4 {[%clk 0:02:06.6]} 28... Rad8 {[%clk 0:01:40]} 29.
Qd1 {[%clk 0:02:01.5]} 29... Rd6 {[%clk 0:01:35]} 30. h4 {[%clk 0:02:00.4]}
30... Red8 {[%clk 0:01:36.1]} 31. Rd2 {[%clk 0:01:58.5]} 31... g6 {[%clk
0:01:30.4]} 32. h5 {[%clk 0:01:50.8]} 32... Qg5 {[%clk 0:01:30.5]} 33. hxg6
{[%clk 0:01:50]} 33... hxg6 {[%clk 0:01:31.4]} 34. Rd4 {[%clk 0:01:50.6]} 34...
Kg7 {[%clk 0:01:30.2]} 35. Qe2 {[%clk 0:01:45.5]} 35... e5 {[%clk 0:01:27.3]}
36. Rh4 {[%clk 0:01:43.4]} 36... d4 {[%clk 0:01:26.4]} 37. Rg4 {[%clk
0:01:34.9]} 37... Qf6 {[%clk 0:01:21.6]} 38. exd4 {[%clk 0:01:32.5]} 38... Rxd4
{[%clk 0:01:20.5]} 39. Rxd4 {[%clk 0:01:33.1]} 39... exd4 {[%clk 0:01:21.1]} 40.
Qd2 {[%clk 0:01:29]} 40... d3 {[%clk 0:01:21.6]} 41. Re1 {[%clk 0:01:29.3]}
41... Rd6 {[%clk 0:01:17.3]} 42. Re3 {[%clk 0:01:25.6]} 42... Re6 {[%clk
0:01:17.7]} 43. Bf1 {[%clk 0:01:20]} 43... Rxe3 {[%clk 0:01:17]} 44. Qxe3 {[%clk
0:01:20.4]} 44... Qd6 {[%clk 0:01:17.8]} 45. Qd2 {[%clk 0:01:20.1]} 45... Qd4
{[%clk 0:01:18.7]} 46. Kg2 {[%clk 0:01:18.8]} 46... Ne4 {[%clk 0:01:19.5]} 47.
Qf4 {[%clk 0:01:13.5]} 47... Qd5 {[%clk 0:01:13.2]} 48. Qf3 {[%clk 0:00:59.3]}
48... d2 {[%clk 0:01:09]} 49. Be2 {[%clk 0:00:59.7]} 49... Nf6 {[%clk
0:01:07.9]} 50. g4 {[%clk 0:00:51.7]} 50... Qxf3+ {[%clk 0:01:04.3]} 51. Kxf3
{[%clk 0:00:52.2]} 51... Nd5 {[%clk 0:01:05.8]} 0-1

[Event "*** MasterClass Titled Tuesday Blitz"]
[Site "Chess.com"]
[Date "2017.12.05"]
[Round "1"]
[White "ZCorrales"]
[Black "AndreyOstrovskiy"]
[Result "1-0"]
[WhiteElo "2128"]
[BlackElo "2519"]
[TimeControl "180+2"]
[EndTime "14:23:36 PST"]
[Termination "ZCorrales won by resignation"]

1. e4 {[%clk 0:03:01.9]} 1... e5 {[%clk 0:02:59.2]} 2. Nf3 {[%clk 0:03:01.9]}
2... Nc6 {[%clk 0:02:58.6]} 3. d4 {[%clk 0:03:02.5]} 3... exd4 {[%clk
0:02:59.4]} 4. Nxd4 {[%clk 0:03:04.1]} 4... Nf6 {[%clk 0:03:00.7]} 5. Nxc6
{[%clk 0:03:03.8]} 5... bxc6 {[%clk 0:03:02.6]} 6. Qe2 {[%clk 0:03:04.8]} 6...
Qe7 {[%clk 0:03:01.2]} 7. Nc3 {[%clk 0:03:04.1]} 7... a5 {[%clk 0:02:52.9]} 8.
Bg5 {[%clk 0:02:59.1]} 8... h6 {[%clk 0:02:49.6]} 9. Bh4 {[%clk 0:02:58.4]} 9...
Ba6 {[%clk 0:02:46]} 10. Qe3 {[%clk 0:02:55.5]} 10... Bxf1 {[%clk 0:02:46.1]}
11. Rxf1 {[%clk 0:02:47.9]} 11... g5 {[%clk 0:02:22.9]} 12. Bg3 {[%clk
0:02:47.8]} 12... Bg7 {[%clk 0:02:23.4]} 13. h3 {[%clk 0:02:42.2]} 13... d6
{[%clk 0:02:05.9]} 14. e5 {[%clk 0:02:37.8]} 14... Nh5 {[%clk 0:01:55.4]} 15.
Bh2 {[%clk 0:02:25.4]} 15... dxe5 {[%clk 0:01:46.3]} 16. Qf3 {[%clk 0:02:20.5]}
16... Qb4 {[%clk 0:01:26.6]} 17. Qxc6+ {[%clk 0:02:16]} 17... Ke7 {[%clk
0:01:24.8]} 18. a3 {[%clk 0:01:46.2]} 18... Qd6 {[%clk 0:01:21.1]} 19. Nd5+
{[%clk 0:01:40.6]} 19... Ke6 {[%clk 0:01:18.4]} 20. Nxc7+ {[%clk 0:01:40.2]}
20... Ke7 {[%clk 0:01:19.5]} 21. Qxd6+ {[%clk 0:01:37.3]} 21... Kxd6 {[%clk
0:01:21.4]} 22. Nxa8 {[%clk 0:01:38.7]} 22... Rxa8 {[%clk 0:01:22.2]} 23. O-O-O+
{[%clk 0:01:40.1]} 23... Ke6 {[%clk 0:01:21.8]} 24. Rd3 {[%clk 0:01:38.1]} 24...
f5 {[%clk 0:01:16.4]} 25. Rfd1 {[%clk 0:01:38.4]} 25... Bf8 {[%clk 0:01:16]} 26.
g4 {[%clk 0:01:38.1]} 26... Nf6 {[%clk 0:01:10.3]} 27. gxf5+ {[%clk 0:01:38.3]}
27... Kxf5 {[%clk 0:01:11.6]} 28. Rd8 {[%clk 0:01:37.4]} 28... Rxd8 {[%clk
0:01:11.3]} 29. Rxd8 {[%clk 0:01:37.8]} 29... Bc5 {[%clk 0:01:12.4]} 30. Bg3
{[%clk 0:01:35]} 30... h5 {[%clk 0:01:12.6]} 31. h4 {[%clk 0:01:30.9]} 31... g4
{[%clk 0:00:59.3]} 32. Rc8 {[%clk 0:01:29.4]} 32... Be7 {[%clk 0:00:55.9]} 33.
Ra8 {[%clk 0:01:28.4]} 33... Ne4 {[%clk 0:00:52]} 34. Rxa5 {[%clk 0:01:28]}
34... Bc5 {[%clk 0:00:53.1]} 35. b4 {[%clk 0:01:27.2]} 35... Bd4 {[%clk
0:00:54.4]} 36. Ra8 {[%clk 0:01:27]} 36... Nc3 {[%clk 0:00:39.1]} 37. Rf8+
{[%clk 0:01:24]} 37... Ke4 {[%clk 0:00:39.9]} 38. a4 {[%clk 0:01:18.1]} 38...
Nxa4 {[%clk 0:00:39.6]} 39. Rh8 {[%clk 0:01:14.5]} 39... Bb2+ {[%clk 0:00:33.6]}
40. Kb1 {[%clk 0:01:13.1]} 40... Bd4 {[%clk 0:00:27.7]} 41. Ka2 {[%clk
0:01:11.3]} 41... Nc3+ {[%clk 0:00:26.2]} 42. Kb3 {[%clk 0:01:12.1]} 42... Nd1
{[%clk 0:00:23.8]} 43. Rxh5 {[%clk 0:01:12.1]} 43... Nxf2 {[%clk 0:00:24.6]} 44.
Rg5 {[%clk 0:01:07.7]} 44... Kf3 {[%clk 0:00:24.8]} 45. Bxe5 {[%clk 0:01:05.3]}
45... Bxe5 {[%clk 0:00:22.7]} 46. Rxe5 {[%clk 0:01:05.8]} 46... g3 {[%clk
0:00:24.1]} 47. Re1 {[%clk 0:01:03.8]} 47... Nh3 {[%clk 0:00:21.6]} 48. b5
{[%clk 0:01:03.2]} 48... Kf2 {[%clk 0:00:22.7]} 49. Ra1 {[%clk 0:01:00.8]} 49...
Ng1 {[%clk 0:00:21.6]} 50. b6 {[%clk 0:01:00.4]} 50... Nf3 {[%clk 0:00:22.8]}
51. b7 {[%clk 0:01:00.1]} 51... Nd4+ {[%clk 0:00:23.3]} 52. Kc4 {[%clk
0:01:01.2]} 52... Nc6 {[%clk 0:00:24.6]} 53. Kd5 {[%clk 0:01:00.5]} 1-0

[Event "*** MasterClass Titled Tuesday Blitz"]
[Site "Chess.com"]
[Date "2017.12.05"]
[Round "1"]
[White "Msb2"]
[Black "evgenysharapov"]
[Result "1-0"]
[WhiteElo "2725"]
[BlackElo "2278"]
[TimeControl "180+2"]
[EndTime "14:23:37 PST"]
[Termination "Msb2 won by resignation"]

1. d4 {[%clk 0:03:01.9]} 1... d5 {[%clk 0:03:00.5]} 2. c4 {[%clk 0:03:02.8]}
2... c6 {[%clk 0:03:01.1]} 3. Nf3 {[%clk 0:03:03.9]} 3... Nf6 {[%clk 0:03:01.8]}
4. e3 {[%clk 0:03:05.8]} 4... Bg4 {[%clk 0:03:01.3]} 5. h3 {[%clk 0:03:06.1]}
5... Bxf3 {[%clk 0:03:01.5]} 6. Qxf3 {[%clk 0:03:08]} 6... e6 {[%clk 0:03:02.5]}
7. a3 {[%clk 0:03:07.5]} 7... Nbd7 {[%clk 0:03:02.8]} 8. Nc3 {[%clk 0:03:08.7]}
8... Bd6 {[%clk 0:03:03]} 9. g4 {[%clk 0:03:08.3]} 9... h6 {[%clk 0:02:53.7]}
10. h4 {[%clk 0:03:06.4]} 10... Qe7 {[%clk 0:02:40]} 11. Bd2 {[%clk 0:02:52.2]}
11... O-O-O {[%clk 0:02:38.8]} 12. O-O-O {[%clk 0:02:53.2]} 12... Kb8 {[%clk
0:02:32.8]} 13. Kb1 {[%clk 0:02:53.9]} 13... a6 {[%clk 0:02:08.2]} 14. Be2
{[%clk 0:02:45.6]} 14... e5 {[%clk 0:02:06.5]} 15. cxd5 {[%clk 0:02:45.5]} 15...
e4 {[%clk 0:02:06.7]} 16. Qg2 {[%clk 0:02:43.3]} 16... cxd5 {[%clk 0:02:06.5]}
17. g5 {[%clk 0:02:44.3]} 17... hxg5 {[%clk 0:01:57.5]} 18. hxg5 {[%clk
0:02:46.2]} 18... Nh7 {[%clk 0:01:56.5]} 19. Nxd5 {[%clk 0:02:33.7]} 19... Qxg5
{[%clk 0:01:56]} 20. Qxe4 {[%clk 0:02:34.7]} 20... Nhf6 {[%clk 0:01:46.8]} 21.
Nxf6 {[%clk 0:02:33.9]} 21... Nxf6 {[%clk 0:01:46.7]} 22. Qd3 {[%clk 0:02:12.6]}
22... Rxh1 {[%clk 0:01:41.2]} 23. Rxh1 {[%clk 0:02:14.5]} 23... Qg2 {[%clk
0:01:41]} 24. Rf1 {[%clk 0:02:08.2]} 24... Rh8 {[%clk 0:01:28.7]} 25. Qb3 {[%clk
0:02:05.5]} 25... Ne4 {[%clk 0:01:09.3]} 26. Bc1 {[%clk 0:02:00.9]} 26... Rh1
{[%clk 0:00:58.5]} 27. Rxh1 {[%clk 0:01:44.4]} 27... Qxh1 {[%clk 0:00:58.1]} 28.
Qxf7 {[%clk 0:01:45.8]} 28... Ka7 {[%clk 0:00:49.9]} 29. Kc2 {[%clk 0:01:39.3]}
29... Qe1 {[%clk 0:00:47.5]} 30. Qf3 {[%clk 0:01:01.3]} 30... Qxf2 {[%clk
0:00:38]} 31. Qxf2 {[%clk 0:01:01.6]} 31... Nxf2 {[%clk 0:00:38.7]} 32. Bf3
{[%clk 0:01:01.8]} 32... g5 {[%clk 0:00:31.6]} 33. e4 {[%clk 0:01:03.1]} 33...
g4 {[%clk 0:00:32.4]} 34. Bg2 {[%clk 0:01:04.3]} 34... g3 {[%clk 0:00:20.5]} 35.
e5 {[%clk 0:01:05.1]} 35... Be7 {[%clk 0:00:18.9]} 36. Bf4 {[%clk 0:01:06.1]}
36... Bh4 {[%clk 0:00:18.4]} 37. d5 {[%clk 0:01:06.4]} 37... Ng4 {[%clk
0:00:16.3]} 38. Kd3 {[%clk 0:01:03.9]} 38... Kb6 {[%clk 0:00:17]} 39. Ke4 {[%clk
0:00:59.8]} 39... Kc5 {[%clk 0:00:17.6]} 40. Kf5 {[%clk 0:01:01.3]} 40... Nf2
{[%clk 0:00:17.1]} 41. d6 {[%clk 0:01:02.5]} 41... Nd3 {[%clk 0:00:15.2]} 42.
Be3+ {[%clk 0:01:02.6]} 42... Kc4 {[%clk 0:00:14.1]} 43. e6 {[%clk 0:01:03.9]}
43... Nc5 {[%clk 0:00:10]} 44. Bxc5 {[%clk 0:01:01]} 44... Kxc5 {[%clk
0:00:10.3]} 45. e7 {[%clk 0:01:02.5]} 1-0

[Event "*** MasterClass Titled Tuesday Blitz"]
[Site "Chess.com"]
[Date "2017.12.05"]
[Round "1"]
[White "pulvettd"]
[Black "Iball95"]
[Result "1-0"]
[WhiteElo "2218"]
[BlackElo "2582"]
[TimeControl "180+2"]
[EndTime "14:23:39 PST"]
[Termination "pulvettd won by checkmate"]

1. c4 {[%clk 0:02:50.4]} 1... e5 {[%clk 0:02:47.1]} 2. Nc3 {[%clk 0:02:48.8]}
2... Bb4 {[%clk 0:02:47.3]} 3. Nf3 {[%clk 0:02:36.1]} 3... Bxc3 {[%clk 0:02:41]}
4. bxc3 {[%clk 0:02:35.3]} 4... Nc6 {[%clk 0:02:38.8]} 5. e4 {[%clk 0:02:30.7]}
5... d6 {[%clk 0:02:38.5]} 6. Be2 {[%clk 0:02:29]} 6... f5 {[%clk 0:02:38.8]} 7.
exf5 {[%clk 0:02:27.7]} 7... Bxf5 {[%clk 0:02:40.7]} 8. O-O {[%clk 0:02:24.6]}
8... Nf6 {[%clk 0:02:41.7]} 9. d4 {[%clk 0:02:16.4]} 9... O-O {[%clk 0:02:35.4]}
10. Qb3 {[%clk 0:02:13.7]} 10... Na5 {[%clk 0:02:19.8]} 11. Qa3 {[%clk
0:02:08.9]} 11... Nc6 {[%clk 0:02:15.7]} 12. Qb3 {[%clk 0:02:06]} 12... Qc8
{[%clk 0:02:09.8]} 13. c5+ {[%clk 0:02:04.7]} 13... Be6 {[%clk 0:02:06]} 14. Qa4
{[%clk 0:02:02.9]} 14... exd4 {[%clk 0:02:02.9]} 15. cxd4 {[%clk 0:02:01.3]}
15... dxc5 {[%clk 0:02:03.8]} 16. dxc5 {[%clk 0:01:58.1]} 16... Bd5 {[%clk
0:01:57.7]} 17. Bb2 {[%clk 0:01:56.8]} 17... Qf5 {[%clk 0:01:55.5]} 18. Rad1
{[%clk 0:01:56.2]} 18... Rae8 {[%clk 0:01:51.2]} 19. Bd3 {[%clk 0:01:51.4]}
19... Qh5 {[%clk 0:01:49.6]} 20. Nd4 {[%clk 0:01:42.1]} 20... Qg5 {[%clk
0:01:30.7]} 21. f3 {[%clk 0:01:38]} 21... Nh5 {[%clk 0:01:22.6]} 22. Nxc6 {[%clk
0:01:26.9]} 22... Bxc6 {[%clk 0:01:24.5]} 23. Qg4 {[%clk 0:01:19.2]} 23... Qxg4
{[%clk 0:01:13.1]} 24. fxg4 {[%clk 0:01:21.1]} 24... Nf4 {[%clk 0:01:14.6]} 25.
Bc4+ {[%clk 0:01:20.4]} 25... Kh8 {[%clk 0:01:15.6]} 26. Rde1 {[%clk 0:01:18.1]}
26... Rxe1 {[%clk 0:01:03.5]} 27. Rxe1 {[%clk 0:01:19]} 27... Bd5 {[%clk
0:01:04.4]} 28. Re7 {[%clk 0:01:15]} 28... Bxc4 {[%clk 0:00:37.3]} 29. Bxg7+
{[%clk 0:01:14.4]} 29... Kg8 {[%clk 0:00:38.1]} 30. Bxf8 {[%clk 0:01:16.3]}
30... Kxf8 {[%clk 0:00:40]} 31. Re4 {[%clk 0:01:17.3]} 31... Ne2+ {[%clk
0:00:37.7]} 32. Kf2 {[%clk 0:01:18]} 32... Ba6 {[%clk 0:00:26.8]} 33. Rxe2
{[%clk 0:01:18.4]} 33... Bxe2 {[%clk 0:00:28.7]} 34. Kxe2 {[%clk 0:01:19.6]}
34... Kf7 {[%clk 0:00:30.6]} 35. Ke3 {[%clk 0:01:18.2]} 35... Kf6 {[%clk
0:00:21.5]} 36. Kd4 {[%clk 0:01:17.6]} 36... c6 {[%clk 0:00:21.9]} 37. h4 {[%clk
0:01:15.5]} 37... Ke6 {[%clk 0:00:22.2]} 38. Ke4 {[%clk 0:01:14]} 38... Kf6
{[%clk 0:00:15.5]} 39. g5+ {[%clk 0:01:14.5]} 39... Ke6 {[%clk 0:00:16.4]} 40.
g4 {[%clk 0:01:15.8]} 40... b6 {[%clk 0:00:17.3]} 41. h5 {[%clk 0:01:13]} 41...
b5 {[%clk 0:00:13.7]} 42. a4 {[%clk 0:01:00.3]} 42... b4 {[%clk 0:00:07.1]} 43.
a5 {[%clk 0:00:59.8]} 43... b3 {[%clk 0:00:06]} 44. Kd3 {[%clk 0:01:00.6]} 44...
Kd5 {[%clk 0:00:07]} 45. g6 {[%clk 0:01:00.7]} 45... hxg6 {[%clk 0:00:08.9]} 46.
h6 {[%clk 0:01:01.7]} 46... Kxc5 {[%clk 0:00:09.1]} 47. Kc3 {[%clk 0:01:02.1]}
47... Kb5 {[%clk 0:00:08.8]} 48. h7 {[%clk 0:01:03]} 48... Ka4 {[%clk
0:00:10.7]} 49. h8=Q {[%clk 0:01:02.9]} 49... c5 {[%clk 0:00:12.3]} 50. Qb8
{[%clk 0:01:00.5]} 50... c4 {[%clk 0:00:13]} 51. Qb4# {[%clk 0:00:59.7]} 1-0

[Event "*** MasterClass Titled Tuesday Blitz"]
[Site "Chess.com"]
[Date "2017.12.05"]
[Round "1"]
[White "FMJoseHerrera"]
[Black "MikelOjda"]
[Result "0-1"]
[WhiteElo "2436"]
[BlackElo "1503"]
[TimeControl "180+2"]
[EndTime "14:23:57 PST"]
[Termination "MikelOjda won by checkmate"]

1. Nf3 {[%clk 0:02:53.5]} 1... d5 {[%clk 0:02:58.5]} 2. g3 {[%clk 0:02:46.6]}
2... Nf6 {[%clk 0:02:57.2]} 3. Bg2 {[%clk 0:02:47.1]} 3... c6 {[%clk 0:02:57.6]}
4. O-O {[%clk 0:02:47.5]} 4... Bf5 {[%clk 0:02:57.9]} 5. d3 {[%clk 0:02:49.4]}
5... h6 {[%clk 0:02:56.5]} 6. c3 {[%clk 0:02:51.3]} 6... Qb6 {[%clk 0:02:54.5]}
7. Qb3 {[%clk 0:02:51.6]} 7... Nbd7 {[%clk 0:02:52.3]} 8. Be3 {[%clk 0:02:51]}
8... Qc7 {[%clk 0:02:49.9]} 9. Nbd2 {[%clk 0:02:48.7]} 9... e6 {[%clk
0:02:47.8]} 10. Nd4 {[%clk 0:02:46.4]} 10... Bh7 {[%clk 0:02:44.7]} 11. h3
{[%clk 0:02:42]} 11... Bd6 {[%clk 0:02:42.3]} 12. f4 {[%clk 0:02:42.3]} 12...
O-O {[%clk 0:02:38.6]} 13. N4f3 {[%clk 0:02:41.5]} 13... e5 {[%clk 0:02:36.1]}
14. fxe5 {[%clk 0:02:41.1]} 14... Nxe5 {[%clk 0:02:34.2]} 15. Nxe5 {[%clk
0:02:42.3]} 15... Bxe5 {[%clk 0:02:32.4]} 16. g4 {[%clk 0:02:44.2]} 16... Rfe8
{[%clk 0:02:29.8]} 17. Nf3 {[%clk 0:02:38.4]} 17... Bg3 {[%clk 0:02:27]} 18. Bd4
{[%clk 0:02:32.3]} 18... Rxe2 {[%clk 0:02:24]} 19. Bxf6 {[%clk 0:02:32.1]} 19...
gxf6 {[%clk 0:02:21.7]} 20. Qd1 {[%clk 0:02:31.7]} 20... Rae8 {[%clk 0:02:18.4]}
21. Nd4 {[%clk 0:02:31.6]} 21... Bh2+ {[%clk 0:02:15.7]} 22. Kh1 {[%clk
0:02:31.6]} 22... Rxg2 {[%clk 0:02:15.9]} 23. Kxg2 {[%clk 0:02:27.2]} 23... Qg3+
{[%clk 0:02:16]} 24. Kh1 {[%clk 0:02:28.7]} 24... Qxh3 {[%clk 0:02:13.8]} 25.
Nf3 {[%clk 0:01:42.2]} 25... Bf4+ {[%clk 0:02:10.5]} 26. Kg1 {[%clk 0:00:18]}
26... Be3+ {[%clk 0:01:05.9]} 27. Rf2 {[%clk 0:00:09.1]} 27... Qg3+ {[%clk
0:00:47.2]} 28. Kh1 {[%clk 0:00:09.6]} 28... Bxf2 {[%clk 0:00:45.2]} 29. Qf1
{[%clk 0:00:10.2]} 29... Qxf3+ {[%clk 0:00:42.5]} 30. Qg2 {[%clk 0:00:12.1]}
30... Qxd3 {[%clk 0:00:33.8]} 31. Qxf2 {[%clk 0:00:11.7]} 31... Re3 {[%clk
0:00:30.9]} 32. Kg1 {[%clk 0:00:06.2]} 32... Rg3+ {[%clk 0:00:28.9]} 33. Kh2
{[%clk 0:00:07.5]} 33... Rh3+ {[%clk 0:00:27.1]} 34. Kg1 {[%clk 0:00:08.8]}
34... Qe4 {[%clk 0:00:24]} 35. Qg2 {[%clk 0:00:09.2]} 35... Qe3+ {[%clk
0:00:21.3]} 36. Kf1 {[%clk 0:00:10.4]} 36... Rf3+ {[%clk 0:00:18.8]} 37. Qxf3
{[%clk 0:00:11]} 37... Qxf3+ {[%clk 0:00:16.5]} 38. Ke1 {[%clk 0:00:12.9]} 38...
Qe3+ {[%clk 0:00:15.1]} 39. Kd1 {[%clk 0:00:12.6]} 39... Bd3 {[%clk 0:00:12]}
40. c4 {[%clk 0:00:07.4]} 40... Qe2+ {[%clk 0:00:08.3]} 41. Kc1 {[%clk
0:00:05.7]} 41... Qc2# {[%clk 0:00:09.1]} 0-1

[Event "*** MasterClass Titled Tuesday Blitz"]
[Site "Chess.com"]
[Date "2017.12.05"]
[Round "1"]
[White "Sam_ChessMood"]
[Black "LuisFSiles"]
[Result "1-0"]
[WhiteElo "2614"]
[BlackElo "2210"]
[TimeControl "180+2"]
[EndTime "14:24:02 PST"]
[Termination "Sam_ChessMood won by resignation"]

1. e4 {[%clk 0:03:01.3]} 1... e5 {[%clk 0:02:59.5]} 2. Nf3 {[%clk 0:03:02.4]}
2... Nc6 {[%clk 0:03:00.7]} 3. Bb5 {[%clk 0:03:03.3]} 3... a6 {[%clk 0:03:01.2]}
4. Ba4 {[%clk 0:03:04.5]} 4... Nf6 {[%clk 0:03:01.7]} 5. O-O {[%clk 0:03:05.7]}
5... Be7 {[%clk 0:03:01.6]} 6. Re1 {[%clk 0:03:07.1]} 6... b5 {[%clk 0:03:02.5]}
7. Bb3 {[%clk 0:03:08.5]} 7... d6 {[%clk 0:03:03.5]} 8. c3 {[%clk 0:03:09.5]}
8... O-O {[%clk 0:03:04.1]} 9. h3 {[%clk 0:03:11]} 9... Nb8 {[%clk 0:03:05.1]}
10. d4 {[%clk 0:03:11.8]} 10... Nbd7 {[%clk 0:03:05.9]} 11. Nbd2 {[%clk
0:03:13.3]} 11... Bb7 {[%clk 0:03:06.9]} 12. Bc2 {[%clk 0:03:14.7]} 12... Re8
{[%clk 0:03:07.7]} 13. Nf1 {[%clk 0:03:16]} 13... Bf8 {[%clk 0:03:07.6]} 14. Ng3
{[%clk 0:03:17.3]} 14... g6 {[%clk 0:03:08.6]} 15. a4 {[%clk 0:03:17]} 15... c5
{[%clk 0:03:05.7]} 16. d5 {[%clk 0:03:18.2]} 16... c4 {[%clk 0:03:04.3]} 17. Bg5
{[%clk 0:03:19.4]} 17... h6 {[%clk 0:03:04.8]} 18. Be3 {[%clk 0:03:19.1]} 18...
Nc5 {[%clk 0:02:55.2]} 19. Qd2 {[%clk 0:03:06.9]} 19... Kh7 {[%clk 0:02:55.4]}
20. Bxc5 {[%clk 0:03:07.9]} 20... dxc5 {[%clk 0:02:55.6]} 21. Qe3 {[%clk
0:03:02.8]} 21... Bd6 {[%clk 0:02:51.5]} 22. Bd1 {[%clk 0:02:47.4]} 22... Qe7
{[%clk 0:02:43.6]} 23. Be2 {[%clk 0:02:48.1]} 23... Reb8 {[%clk 0:02:40.9]} 24.
Ra2 {[%clk 0:02:43.5]} 24... Nd7 {[%clk 0:02:21.3]} 25. Rea1 {[%clk 0:02:41.6]}
25... Nb6 {[%clk 0:02:22.4]} 26. axb5 {[%clk 0:02:21.6]} 26... axb5 {[%clk
0:02:24.3]} 27. Ra5 {[%clk 0:02:20.7]} 27... Bc8 {[%clk 0:02:11.7]} 28. Rxa8
{[%clk 0:01:55.7]} 28... Rxa8 {[%clk 0:02:11.5]} 29. Rxa8 {[%clk 0:01:56.6]}
29... Nxa8 {[%clk 0:02:13.4]} 30. h4 {[%clk 0:01:57.1]} 30... Nb6 {[%clk
0:02:06.4]} 31. h5 {[%clk 0:01:56]} 31... Na4 {[%clk 0:02:07.4]} 32. Qd2 {[%clk
0:01:49.6]} 32... Ba6 {[%clk 0:01:40.5]} 33. Bd1 {[%clk 0:01:45.1]} 33... Nb6
{[%clk 0:01:37.9]} 34. Qc1 {[%clk 0:01:34.5]} 34... Bc8 {[%clk 0:01:33.9]} 35.
Qa1 {[%clk 0:01:32]} 35... Qb7 {[%clk 0:01:34.8]} 36. Nh2 {[%clk 0:01:28.1]}
36... Qa6 {[%clk 0:01:32]} 37. Qc1 {[%clk 0:01:29.1]} 37... Qa2 {[%clk
0:01:29.3]} 38. Bg4 {[%clk 0:01:29.8]} 38... Qa8 {[%clk 0:01:12.4]} 39. Bxc8
{[%clk 0:01:25.8]} 39... Qxc8 {[%clk 0:01:13.2]} 40. Qe3 {[%clk 0:01:16.8]}
40... Na4 {[%clk 0:01:13.8]} 41. Qf3 {[%clk 0:01:16.6]} 41... Qc7 {[%clk
0:00:46.7]} 42. Ng4 {[%clk 0:01:15]} 42... Nxb2 {[%clk 0:00:34.9]} 43. Nf6+
{[%clk 0:00:51.8]} 43... Kh8 {[%clk 0:00:26.8]} 44. Ne8 {[%clk 0:00:47.8]} 44...
Qe7 {[%clk 0:00:24.6]} 45. Nxd6 {[%clk 0:00:48.7]} 45... Qxd6 {[%clk 0:00:25.2]}
46. Qxf7 {[%clk 0:00:49.9]} 46... Qd8 {[%clk 0:00:13.3]} 47. hxg6 {[%clk
0:00:42.5]} 47... Qg8 {[%clk 0:00:12.5]} 48. Nf5 {[%clk 0:00:40.7]} 48... b4
{[%clk 0:00:09.8]} 49. Qf6+ {[%clk 0:00:40.9]} 1-0